[Event "Titled Tuesday Blitz July 18 Early 2023"]
[White "Kiseleva, Arina"]
[Black "ArchibaldCerveza29"]
[WhiteFideId "4164989"]
[WhiteElo "2204"]
[BlackElo "2467"]
[Result "1-0"]
[Round "7"]
[TimeControl "180+2"]
[Date "2023.07.18"]
[WhiteClock "0:00:04"]
[BlackClock "0:00:00"]
[Board "169"]

1. d4 {[%clk 0:03:00]}  d5 {[%clk 0:02:59]} 2. Nf3 {[%clk 0:03:00]}  Nf6 {[%clk 0:02:58]} 3. e3 {[%clk 0:03:00]}  c5 {[%clk 0:02:58]} 4. Nbd2 {[%clk 0:02:59]}  Nc6 {[%clk 0:02:55]} 5. b3 {[%clk 0:02:51]}  Bg4 {[%clk 0:02:51]} 6. Be2 {[%clk 0:02:50]}  e6 {[%clk 0:02:48]} 7. h3 {[%clk 0:02:48]}  Bh5 {[%clk 0:02:45]} 8. Bb2 {[%clk 0:02:48]}  Be7 {[%clk 0:02:43]} 9. O-O {[%clk 0:02:47]}  O-O {[%clk 0:02:43]} 10. c4 {[%clk 0:02:41]}  Rc8 {[%clk 0:02:35]} 11. Rc1 {[%clk 0:02:38]}  b6 {[%clk 0:02:20]} 12. Ne5 {[%clk 0:02:26]}  Nxe5 {[%clk 0:02:02]} 13. dxe5 {[%clk 0:02:20]}  Bxe2 {[%clk 0:02:02]} 14. Qxe2 {[%clk 0:02:18]}  Nd7 {[%clk 0:01:58]} 15. cxd5 {[%clk 0:02:05]}  exd5 {[%clk 0:01:59]} 16. e6 {[%clk 0:01:55]}  fxe6 {[%clk 0:01:45]} 17. Qg4 {[%clk 0:01:55]}  Bf6 {[%clk 0:01:21]} 18. Qxe6+ {[%clk 0:01:53]}  Kh8 {[%clk 0:01:20]} 19. Bxf6 {[%clk 0:01:49]}  Nxf6 {[%clk 0:01:21]} 20. Nf3 {[%clk 0:01:42]}  Qc7 {[%clk 0:01:13]} 21. Qf5 {[%clk 0:01:20]}  Rcd8 {[%clk 0:01:06]} 22. Ng5 {[%clk 0:01:17]}  Qd7 {[%clk 0:00:55]} 23. Qc2 {[%clk 0:00:48]}  h6 {[%clk 0:00:41]} 24. Nf3 {[%clk 0:00:48]}  Qe6 {[%clk 0:00:33]} 25. Nh4 {[%clk 0:00:44]}  Kg8 {[%clk 0:00:28]} 26. Ng6 {[%clk 0:00:44]}  Rf7 {[%clk 0:00:24]} 27. Nf4 {[%clk 0:00:45]}  Qe5 {[%clk 0:00:21]} 28. Rfd1 {[%clk 0:00:36]}  Rfd7 {[%clk 0:00:21]} 29. Rd3 {[%clk 0:00:20]}  d4 {[%clk 0:00:20]} 30. Qc4+ {[%clk 0:00:12]}  Nd5 {[%clk 0:00:16]} 31. Rcd1 {[%clk 0:00:10]}  Kh7 {[%clk 0:00:13]} 32. Nxd5 {[%clk 0:00:10]}  Qxd5 {[%clk 0:00:12]} 33. Qxd5 {[%clk 0:00:08]}  Rxd5 {[%clk 0:00:12]} 34. exd4 {[%clk 0:00:08]}  Rxd4 {[%clk 0:00:13]} 35. Rxd4 {[%clk 0:00:07]}  cxd4 {[%clk 0:00:14]} 36. f3 {[%clk 0:00:07]}  Kg6 {[%clk 0:00:14]} 37. Kf2 {[%clk 0:00:06]}  Kf6 {[%clk 0:00:14]} 38. f4 {[%clk 0:00:06]}  Kf5 {[%clk 0:00:13]} 39. Kf3 {[%clk 0:00:06]}  h5 {[%clk 0:00:12]} 40. g4+ {[%clk 0:00:06]}  hxg4+ {[%clk 0:00:12]} 41. hxg4+ {[%clk 0:00:07]}  Kf6 {[%clk 0:00:12]} 42. Ke4 {[%clk 0:00:07]}  g5 {[%clk 0:00:11]} 43. fxg5+ {[%clk 0:00:06]}  Kxg5 {[%clk 0:00:12]} 44. Rxd4 {[%clk 0:00:06]}  Re8+ {[%clk 0:00:12]} 45. Kd3 {[%clk 0:00:06]}  Re1 {[%clk 0:00:11]} 46. Kc3 {[%clk 0:00:06]}  Rc1+ {[%clk 0:00:09]} 47. Kb4 {[%clk 0:00:05]}  Rc7 {[%clk 0:00:10]} 48. a4 {[%clk 0:00:05]}  Re7 {[%clk 0:00:07]} 49. Kb5 {[%clk 0:00:05]}  Rc7 {[%clk 0:00:06]} 50. Rc4 {[%clk 0:00:04]}  Re7 {[%clk 0:00:06]} 51. Ka6 {[%clk 0:00:04]}  Rd7 {[%clk 0:00:05]} 52. b4 {[%clk 0:00:04]}  Re7 {[%clk 0:00:05]} 53. b5 {[%clk 0:00:04]}  Rd7 {[%clk 0:00:04]} 54. Rc8 {[%clk 0:00:04]}  Kxg4 {[%clk 0:00:03]} 55. Ra8 {[%clk 0:00:04]}  Rd4 {[%clk 0:00:02]} 56. Rxa7 {[%clk 0:00:04]}  Rxa4+ {[%clk 0:00:02]} 57. Kxb6 {[%clk 0:00:04]}  Ra1 {[%clk 0:00:00]} 58. Rxa1 {[%clk 0:00:04]} 1-0


[Site "https://www.chess.com"]

[Event "Titled Tuesday Blitz July 18 Early 2023"]
[White "Sankalan Shah"]
[Black "Corredor Castellanos, Camilo"]
[WhiteFideId "25600362"]
[BlackFideId "4425871"]
[WhiteElo "2171"]
[BlackElo "2408"]
[Result "0-1"]
[Round "7"]
[TimeControl "180+2"]
[Date "2023.07.18"]
[WhiteClock "0:00:02"]
[BlackClock "0:00:21"]
[Board "170"]

1. d4 {[%clk 0:03:00]}  Nf6 {[%clk 0:02:58]} 2. c4 {[%clk 0:03:00]}  e6 {[%clk 0:02:58]} 3. Nf3 {[%clk 0:03:00]}  d5 {[%clk 0:02:57]} 4. Nc3 {[%clk 0:03:00]}  dxc4 {[%clk 0:02:56]} 5. e4 {[%clk 0:02:57]}  b5 {[%clk 0:02:55]} 6. e5 {[%clk 0:02:51]}  Nd5 {[%clk 0:02:38]} 7. Nxb5 {[%clk 0:02:47]}  Nb6 {[%clk 0:02:39]} 8. Be3 {[%clk 0:02:39]}  Bb7 {[%clk 0:02:39]} 9. Be2 {[%clk 0:02:37]}  Be7 {[%clk 0:02:34]} 10. O-O {[%clk 0:02:36]}  O-O {[%clk 0:02:34]} 11. Nd2 {[%clk 0:02:15]}  Ba6 {[%clk 0:02:14]} 12. Nc3 {[%clk 0:02:11]}  Nc6 {[%clk 0:02:07]} 13. Nde4 {[%clk 0:02:09]}  Rb8 {[%clk 0:02:02]} 14. f4 {[%clk 0:02:00]}  Nd5 {[%clk 0:02:02]} 15. Nxd5 {[%clk 0:01:34]}  exd5 {[%clk 0:01:58]} 16. Nc3 {[%clk 0:01:33]}  Rxb2 {[%clk 0:01:57]} 17. Qa4 {[%clk 0:01:18]}  Bb7 {[%clk 0:01:49]} 18. Bf3 {[%clk 0:01:07]}  Rb4 {[%clk 0:00:58]} 19. Qc2 {[%clk 0:01:07]}  Nb8 {[%clk 0:00:54]} 20. f5 {[%clk 0:00:34]}  f6 {[%clk 0:00:51]} 21. e6 {[%clk 0:00:33]}  a5 {[%clk 0:00:41]} 22. Bd2 {[%clk 0:00:26]}  Nc6 {[%clk 0:00:35]} 23. Ne2 {[%clk 0:00:21]}  Rb6 {[%clk 0:00:32]} 24. a3 {[%clk 0:00:17]}  Ba6 {[%clk 0:00:25]} 25. Bc3 {[%clk 0:00:15]}  Qd6 {[%clk 0:00:23]} 26. Rfb1 {[%clk 0:00:14]}  Rfb8 {[%clk 0:00:23]} 27. Rxb6 {[%clk 0:00:13]}  cxb6 {[%clk 0:00:24]} 28. Bd2 {[%clk 0:00:13]}  Rc8 {[%clk 0:00:23]} 29. Bf4 {[%clk 0:00:14]}  Qd8 {[%clk 0:00:23]} 30. Rb1 {[%clk 0:00:14]}  b5 {[%clk 0:00:24]} 31. Nc3 {[%clk 0:00:13]}  Nxd4 {[%clk 0:00:24]} 32. Qf2 {[%clk 0:00:11]}  Nxf5 {[%clk 0:00:23]} 33. Bxd5 {[%clk 0:00:11]}  b4 {[%clk 0:00:22]} 34. Ne4 {[%clk 0:00:02]}  Qxd5 {[%clk 0:00:21]} 0-1


[Site "https://www.chess.com"]

[Event "Titled Tuesday Blitz July 18 Early 2023"]
[White "Ziatdinov, Raset"]
[Black "Lisjak, Zlatko"]
[WhiteFideId "2015323"]
[BlackFideId "14502186"]
[WhiteElo "2299"]
[BlackElo "2157"]
[Result "1-0"]
[Round "7"]
[TimeControl "180+2"]
[Date "2023.07.18"]
[WhiteClock "0:00:50"]
[BlackClock "0:00:00"]
[Board "171"]

1. e4 {[%clk 0:03:00]}  d6 {[%clk 0:03:00]} 2. d4 {[%clk 0:03:01]}  Nf6 {[%clk 0:03:00]} 3. f3 {[%clk 0:03:00]}  c6 {[%clk 0:03:00]} 4. Be3 {[%clk 0:03:00]}  Qb6 {[%clk 0:03:00]} 5. Qc1 {[%clk 0:02:50]}  Qa5+ {[%clk 0:02:46]} 6. Nc3 {[%clk 0:02:49]}  e5 {[%clk 0:02:45]} 7. Qd2 {[%clk 0:02:47]}  Be7 {[%clk 0:02:44]} 8. g4 {[%clk 0:02:41]}  b5 {[%clk 0:02:42]} 9. h4 {[%clk 0:02:34]}  b4 {[%clk 0:02:28]} 10. Nce2 {[%clk 0:02:34]}  Na6 {[%clk 0:02:13]} 11. h5 {[%clk 0:02:33]}  h6 {[%clk 0:02:09]} 12. Ng3 {[%clk 0:02:28]}  exd4 {[%clk 0:02:04]} 13. Bxd4 {[%clk 0:02:27]}  c5 {[%clk 0:02:05]} 14. Be3 {[%clk 0:02:26]}  Qc7 {[%clk 0:01:46]} 15. Nf5 {[%clk 0:02:24]}  Bxf5 {[%clk 0:01:39]} 16. exf5 {[%clk 0:02:23]}  c4 {[%clk 0:01:37]} 17. Nh3 {[%clk 0:01:48]}  d5 {[%clk 0:01:20]} 18. Nf4 {[%clk 0:01:44]}  O-O-O {[%clk 0:01:00]} 19. O-O-O {[%clk 0:01:28]}  d4 {[%clk 0:00:43]} 20. Bxd4 {[%clk 0:01:23]}  Bc5 {[%clk 0:00:41]} 21. c3 {[%clk 0:01:22]}  bxc3 {[%clk 0:00:38]} 22. bxc3 {[%clk 0:01:21]}  Ba3+ {[%clk 0:00:20]} 23. Kc2 {[%clk 0:01:17]}  Qc6 {[%clk 0:00:17]} 24. Qe2 {[%clk 0:01:04]}  Qa4+ {[%clk 0:00:16]} 25. Kb1 {[%clk 0:01:04]}  Qb5+ {[%clk 0:00:13]} 26. Ka1 {[%clk 0:01:04]}  Nc5 {[%clk 0:00:11]} 27. Qxc4 {[%clk 0:01:01]}  Qxc4 {[%clk 0:00:09]} 28. Bxc4 {[%clk 0:01:00]}  Na4 {[%clk 0:00:07]} 29. Rb1 {[%clk 0:00:51]}  Rhe8 {[%clk 0:00:00]} 30. Bxf7 {[%clk 0:00:50]} 1-0


[Site "https://www.chess.com"]

[Event "Titled Tuesday Blitz July 18 Early 2023"]
[White "Magallanes, Rey Jomar"]
[Black "Ishowmoves57"]
[WhiteFideId "5205948"]
[WhiteElo "2256"]
[BlackElo "2123"]
[Result "1/2-1/2"]
[Round "7"]
[TimeControl "180+2"]
[Date "2023.07.18"]
[WhiteClock "0:00:31"]
[BlackClock "0:00:19"]
[Board "173"]

1. e4 {[%clk 0:02:56]}  c5 {[%clk 0:02:58]} 2. Nf3 {[%clk 0:02:56]}  Nc6 {[%clk 0:02:59]} 3. d4 {[%clk 0:02:54]}  cxd4 {[%clk 0:02:59]} 4. Nxd4 {[%clk 0:02:55]}  e5 {[%clk 0:03:00]} 5. Nb5 {[%clk 0:02:48]}  d6 {[%clk 0:02:59]} 6. N1c3 {[%clk 0:02:45]}  a6 {[%clk 0:02:59]} 7. Na3 {[%clk 0:02:45]}  b5 {[%clk 0:02:59]} 8. Nd5 {[%clk 0:02:45]}  Nf6 {[%clk 0:02:58]} 9. Bg5 {[%clk 0:02:44]}  Be7 {[%clk 0:02:58]} 10. Bxf6 {[%clk 0:02:45]}  Bxf6 {[%clk 0:02:59]} 11. c3 {[%clk 0:02:45]}  O-O {[%clk 0:02:59]} 12. Nc2 {[%clk 0:02:45]}  Bg5 {[%clk 0:02:58]} 13. a4 {[%clk 0:02:43]}  b4 {[%clk 0:02:47]} 14. Ncxb4 {[%clk 0:02:40]}  Nxb4 {[%clk 0:02:47]} 15. cxb4 {[%clk 0:02:41]}  Be6 {[%clk 0:02:40]} 16. Bc4 {[%clk 0:02:40]}  Bxd5 {[%clk 0:02:32]} 17. Bxd5 {[%clk 0:02:39]}  Rb8 {[%clk 0:02:32]} 18. b5 {[%clk 0:02:31]}  Qa5+ {[%clk 0:02:31]} 19. Kf1 {[%clk 0:02:27]}  axb5 {[%clk 0:02:29]} 20. g3 {[%clk 0:02:23]}  bxa4 {[%clk 0:02:23]} 21. Rxa4 {[%clk 0:02:21]}  Qb5+ {[%clk 0:02:18]} 22. Bc4 {[%clk 0:02:21]}  Qxb2 {[%clk 0:02:13]} 23. Kg2 {[%clk 0:02:21]}  Be3 {[%clk 0:02:05]} 24. Rf1 {[%clk 0:02:20]}  Bd4 {[%clk 0:02:03]} 25. Ra2 {[%clk 0:02:19]}  Qc3 {[%clk 0:02:00]} 26. Bd5 {[%clk 0:02:19]}  Rb2 {[%clk 0:01:57]} 27. Rxb2 {[%clk 0:02:15]}  Qxb2 {[%clk 0:01:56]} 28. Qd3 {[%clk 0:02:15]}  g6 {[%clk 0:01:51]} 29. Rb1 {[%clk 0:02:13]}  Qxf2+ {[%clk 0:01:50]} 30. Kh1 {[%clk 0:02:06]}  Rc8 {[%clk 0:01:32]} 31. Rf1 {[%clk 0:02:04]}  Qe3 {[%clk 0:00:51]} 32. Qxe3 {[%clk 0:01:17]}  Bxe3 {[%clk 0:00:50]} 33. Rxf7 {[%clk 0:01:18]}  Kh8 {[%clk 0:00:47]} 34. Rd7 {[%clk 0:01:17]}  Bc5 {[%clk 0:00:43]} 35. Kg2 {[%clk 0:01:14]}  Rf8 {[%clk 0:00:42]} 36. Rf7 {[%clk 0:01:01]}  Rxf7 {[%clk 0:00:41]} 37. Bxf7 {[%clk 0:01:02]}  Kg7 {[%clk 0:00:42]} 38. Bd5 {[%clk 0:01:03]}  Kf6 {[%clk 0:00:42]} 39. h4 {[%clk 0:00:58]}  g5 {[%clk 0:00:40]} 40. h5 {[%clk 0:00:54]}  g4 {[%clk 0:00:35]} 41. Bg8 {[%clk 0:00:45]}  h6 {[%clk 0:00:19]} 42. Bh7 {[%clk 0:00:44]}  Kg5 {[%clk 0:00:16]} 43. Bg6 {[%clk 0:00:44]}  Bb4 {[%clk 0:00:17]} 44. Bf7 {[%clk 0:00:42]}  Be1 {[%clk 0:00:16]} 45. Kh2 {[%clk 0:00:40]}  Kf6 {[%clk 0:00:17]} 46. Bg8 {[%clk 0:00:37]}  Ke7 {[%clk 0:00:17]} 47. Kg2 {[%clk 0:00:33]}  Kf6 {[%clk 0:00:17]} 48. Kh2 {[%clk 0:00:32]}  Kg5 {[%clk 0:00:18]} 49. Bf7 {[%clk 0:00:32]}  Bb4 {[%clk 0:00:18]} 50. Kg2 {[%clk 0:00:32]}  Kf6 {[%clk 0:00:18]} 51. Bg8 {[%clk 0:00:31]}  Kg5 {[%clk 0:00:19]} 52. Bf7 {[%clk 0:00:31]} 1/2-1/2


[Site "https://www.chess.com"]

[Event "Titled Tuesday Blitz July 18 Early 2023"]
[White "Sarkar, Justin"]
[Black "Hrescak, Ivana"]
[WhiteFideId "2010011"]
[BlackFideId "14613441"]
[WhiteElo "2226"]
[BlackElo "2123"]
[Result "1-0"]
[Round "7"]
[TimeControl "180+2"]
[Date "2023.07.18"]
[WhiteClock "0:00:14"]
[BlackClock "0:00:00"]
[Board "174"]

1. e4 {[%clk 0:02:50]}  e5 {[%clk 0:02:59]} 2. f4 {[%clk 0:02:49]}  exf4 {[%clk 0:02:54]} 3. Nf3 {[%clk 0:02:49]}  Ne7 {[%clk 0:02:55]} 4. d4 {[%clk 0:02:40]}  d5 {[%clk 0:02:50]} 5. Qe2 {[%clk 0:02:28]}  dxe4 {[%clk 0:02:30]} 6. Qxe4 {[%clk 0:02:27]}  Qd5 {[%clk 0:02:12]} 7. Qxf4 {[%clk 0:02:22]}  Ng6 {[%clk 0:01:59]} 8. Qg5 {[%clk 0:01:55]}  Qe4+ {[%clk 0:01:35]} 9. Qe3 {[%clk 0:01:53]}  Bf5 {[%clk 0:01:33]} 10. c3 {[%clk 0:01:39]}  Nd7 {[%clk 0:01:24]} 11. Bc4 {[%clk 0:01:31]}  c5 {[%clk 0:00:56]} 12. Bxf7+ {[%clk 0:01:20]}  Kd8 {[%clk 0:00:46]} 13. O-O {[%clk 0:01:16]}  Bd6 {[%clk 0:00:35]} 14. Qxe4 {[%clk 0:00:55]}  Bxe4 {[%clk 0:00:35]} 15. Ng5 {[%clk 0:00:54]}  Bd3 {[%clk 0:00:20]} 16. Rf3 {[%clk 0:00:36]}  c4 {[%clk 0:00:17]} 17. Bd5 {[%clk 0:00:29]}  Kc7 {[%clk 0:00:14]} 18. Ne6+ {[%clk 0:00:28]}  Kb6 {[%clk 0:00:11]} 19. Nd2 {[%clk 0:00:20]}  Rac8 {[%clk 0:00:06]} 20. Ne4 {[%clk 0:00:19]}  Bxe4 {[%clk 0:00:05]} 21. Bxe4 {[%clk 0:00:19]}  Nf6 {[%clk 0:00:05]} 22. Bxg6 {[%clk 0:00:13]}  hxg6 {[%clk 0:00:00]} 23. Bf4 {[%clk 0:00:14]} 1-0


[Site "https://www.chess.com"]

[Event "Titled Tuesday Blitz July 18 Early 2023"]
[White "Johnson, Ben"]
[Black "Kev4444444444"]
[WhiteFideId "2010917"]
[WhiteElo "2122"]
[BlackElo "2218"]
[Result "0-1"]
[Round "7"]
[TimeControl "180+2"]
[Date "2023.07.18"]
[WhiteClock "0:00:03"]
[BlackClock "0:00:21"]
[Board "175"]

1. Nf3 {[%clk 0:03:00]}  d5 {[%clk 0:02:59]} 2. e3 {[%clk 0:03:00]}  c5 {[%clk 0:02:59]} 3. b3 {[%clk 0:02:59]}  Nf6 {[%clk 0:02:56]} 4. Bb2 {[%clk 0:02:59]}  g6 {[%clk 0:02:56]} 5. Bb5+ {[%clk 0:02:59]}  Nbd7 {[%clk 0:02:54]} 6. Ne5 {[%clk 0:02:57]}  Bg7 {[%clk 0:02:51]} 7. O-O {[%clk 0:02:51]}  O-O {[%clk 0:02:50]} 8. f4 {[%clk 0:02:44]}  a6 {[%clk 0:02:48]} 9. Bxd7 {[%clk 0:02:41]}  Nxd7 {[%clk 0:02:47]} 10. Nd3 {[%clk 0:02:25]}  Bxb2 {[%clk 0:02:44]} 11. Nxb2 {[%clk 0:02:25]}  e5 {[%clk 0:02:44]} 12. f5 {[%clk 0:02:24]}  Nf6 {[%clk 0:02:32]} 13. fxg6 {[%clk 0:02:21]}  fxg6 {[%clk 0:02:33]} 14. Nd3 {[%clk 0:02:15]}  Qe7 {[%clk 0:02:21]} 15. Nc3 {[%clk 0:02:03]}  Bf5 {[%clk 0:02:10]} 16. Qe2 {[%clk 0:01:50]}  d4 {[%clk 0:02:03]} 17. exd4 {[%clk 0:01:41]}  cxd4 {[%clk 0:02:03]} 18. Na4 {[%clk 0:01:23]}  b5 {[%clk 0:02:00]} 19. Nac5 {[%clk 0:01:20]}  e4 {[%clk 0:01:59]} 20. b4 {[%clk 0:01:06]}  Nd5 {[%clk 0:01:58]} 21. Rae1 {[%clk 0:00:35]}  exd3 {[%clk 0:01:36]} 22. Qxe7 {[%clk 0:00:35]}  Nxe7 {[%clk 0:01:37]} 23. Rxe7 {[%clk 0:00:35]}  dxc2 {[%clk 0:01:37]} 24. d3 {[%clk 0:00:26]}  a5 {[%clk 0:01:31]} 25. Rc1 {[%clk 0:00:21]}  axb4 {[%clk 0:01:28]} 26. Rxc2 {[%clk 0:00:21]}  Rfc8 {[%clk 0:01:26]} 27. Ree2 {[%clk 0:00:16]}  Rc6 {[%clk 0:01:19]} 28. Ne4 {[%clk 0:00:07]}  Bxe4 {[%clk 0:01:01]} 29. dxe4 {[%clk 0:00:05]}  d3 {[%clk 0:01:01]} 30. Rxc6 {[%clk 0:00:05]}  dxe2 {[%clk 0:01:01]} 31. Kf2 {[%clk 0:00:06]}  Rxa2 {[%clk 0:01:02]} 32. Rb6 {[%clk 0:00:05]}  e1=Q+ {[%clk 0:00:45]} 33. Kxe1 {[%clk 0:00:06]}  Rxg2 {[%clk 0:00:46]} 34. Rxb5 {[%clk 0:00:06]}  Rxh2 {[%clk 0:00:45]} 35. Rxb4 {[%clk 0:00:06]}  Kg7 {[%clk 0:00:43]} 36. Rb6 {[%clk 0:00:06]}  Rh4 {[%clk 0:00:41]} 37. Re6 {[%clk 0:00:04]}  Kf7 {[%clk 0:00:40]} 38. Re5 {[%clk 0:00:05]}  Kf6 {[%clk 0:00:37]} 39. Re8 {[%clk 0:00:05]}  h5 {[%clk 0:00:36]} 40. Kf2 {[%clk 0:00:05]}  Rg4 {[%clk 0:00:36]} 41. Kf3 {[%clk 0:00:06]}  Kf7 {[%clk 0:00:35]} 42. Re5 {[%clk 0:00:06]}  Rg1 {[%clk 0:00:32]} 43. Ra5 {[%clk 0:00:06]}  Rb1 {[%clk 0:00:31]} 44. Ra7+ {[%clk 0:00:05]}  Kf6 {[%clk 0:00:32]} 45. Ra6+ {[%clk 0:00:06]}  Kg5 {[%clk 0:00:32]} 46. Ra5+ {[%clk 0:00:07]}  Kh6 {[%clk 0:00:33]} 47. Ra6 {[%clk 0:00:07]}  Kg5 {[%clk 0:00:28]} 48. e5 {[%clk 0:00:06]}  Re1 {[%clk 0:00:24]} 49. Ra5 {[%clk 0:00:03]}  Kf5 {[%clk 0:00:21]} 50. e6+ {[%clk 0:00:02]}  Kxe6 {[%clk 0:00:21]} 51. Kf2 {[%clk 0:00:03]}  Rb1 {[%clk 0:00:21]} 52. Kg3 {[%clk 0:00:04]}  Kf6 {[%clk 0:00:20]} 53. Ra6+ {[%clk 0:00:04]}  Kg7 {[%clk 0:00:21]} 54. Ra7+ {[%clk 0:00:05]}  Kh6 {[%clk 0:00:21]} 55. Rb7 {[%clk 0:00:05]}  Rxb7 {[%clk 0:00:21]} 56. Kh4 {[%clk 0:00:05]}  g5+ {[%clk 0:00:20]} 57. Kh3 {[%clk 0:00:03]}  Rb3+ {[%clk 0:00:21]} 0-1


[Site "https://www.chess.com"]

[Event "Titled Tuesday Blitz July 18 Early 2023"]
[White "BeautiFullMindChess"]
[Black "abelmat"]
[WhiteElo "2178"]
[BlackElo "1967"]
[Result "1-0"]
[Round "7"]
[TimeControl "180+2"]
[Date "2023.07.18"]
[WhiteClock "0:00:12"]
[BlackClock "0:00:11"]
[Board "178"]

1. e4 {[%clk 0:02:59]}  e6 {[%clk 0:02:46]} 2. d4 {[%clk 0:02:58]}  d5 {[%clk 0:02:45]} 3. exd5 {[%clk 0:02:58]}  exd5 {[%clk 0:02:45]} 4. Nf3 {[%clk 0:02:59]}  Nf6 {[%clk 0:02:45]} 5. Bd3 {[%clk 0:02:59]}  Bg4 {[%clk 0:02:44]} 6. Qe2+ {[%clk 0:02:58]}  Be7 {[%clk 0:02:42]} 7. Nc3 {[%clk 0:02:46]}  O-O {[%clk 0:02:41]} 8. h3 {[%clk 0:02:40]}  Bh5 {[%clk 0:02:40]} 9. Bf4 {[%clk 0:02:22]}  Nc6 {[%clk 0:02:37]} 10. g4 {[%clk 0:02:20]}  Bg6 {[%clk 0:02:37]} 11. O-O-O {[%clk 0:02:16]}  Re8 {[%clk 0:02:21]} 12. Bxg6 {[%clk 0:02:14]}  hxg6 {[%clk 0:02:20]} 13. Ne5 {[%clk 0:02:13]}  Bb4 {[%clk 0:02:16]} 14. Qd3 {[%clk 0:02:01]}  Bxc3 {[%clk 0:02:13]} 15. Qxc3 {[%clk 0:02:01]}  Ne4 {[%clk 0:02:13]} 16. Qe1 {[%clk 0:01:50]}  a5 {[%clk 0:02:10]} 17. f3 {[%clk 0:01:47]}  Nd6 {[%clk 0:02:01]} 18. Qc3 {[%clk 0:01:35]}  Nb4 {[%clk 0:01:45]} 19. Kb1 {[%clk 0:01:34]}  b5 {[%clk 0:01:38]} 20. a3 {[%clk 0:01:32]}  Nc4 {[%clk 0:01:37]} 21. axb4 {[%clk 0:01:21]}  axb4 {[%clk 0:01:37]} 22. Qxb4 {[%clk 0:01:21]}  Qf6 {[%clk 0:01:17]} 23. Bg3 {[%clk 0:01:08]}  Qa6 {[%clk 0:01:17]} 24. c3 {[%clk 0:00:48]}  Ne3 {[%clk 0:01:02]} 25. Kc1 {[%clk 0:00:39]}  Nxd1 {[%clk 0:00:55]} 26. Rxd1 {[%clk 0:00:40]}  f6 {[%clk 0:00:50]} 27. Nd3 {[%clk 0:00:31]}  Re2 {[%clk 0:00:48]} 28. Rd2 {[%clk 0:00:17]}  Qa1+ {[%clk 0:00:34]} 29. Kc2 {[%clk 0:00:17]}  Rae8 {[%clk 0:00:31]} 30. Qxb5 {[%clk 0:00:15]}  Kh7 {[%clk 0:00:25]} 31. h4 {[%clk 0:00:14]}  Rxd2+ {[%clk 0:00:22]} 32. Kxd2 {[%clk 0:00:14]}  Re6 {[%clk 0:00:21]} 33. h5 {[%clk 0:00:14]}  Rb6 {[%clk 0:00:21]} 34. Qxd5 {[%clk 0:00:13]}  Qg1 {[%clk 0:00:19]} 35. Bf2 {[%clk 0:00:12]}  Qb1 {[%clk 0:00:12]} 36. hxg6+ {[%clk 0:00:12]}  Kxg6 {[%clk 0:00:11]} 37. Qh5# {[%clk 0:00:12]} 1-0


[Site "https://www.chess.com"]

[Event "Titled Tuesday Blitz July 18 Early 2023"]
[White "Mishra, Manoj"]
[Black "Castillo Pena, Patricia Evarista"]
[WhiteFideId "5006007"]
[BlackFideId "6412106"]
[WhiteElo "2171"]
[BlackElo "1844"]
[Result "1/2-1/2"]
[Round "7"]
[TimeControl "180+2"]
[Date "2023.07.18"]
[WhiteClock "0:00:37"]
[BlackClock "0:01:32"]
[Board "180"]

1. d4 {[%clk 0:02:07]}  d5 {[%clk 0:02:57]} 2. c4 {[%clk 0:02:07]}  c6 {[%clk 0:02:57]} 3. Nc3 {[%clk 0:02:06]}  Nf6 {[%clk 0:02:57]} 4. Bf4 {[%clk 0:02:05]}  e6 {[%clk 0:02:55]} 5. e3 {[%clk 0:02:05]}  Bd6 {[%clk 0:02:52]} 6. c5 {[%clk 0:02:04]}  Bxf4 {[%clk 0:02:51]} 7. exf4 {[%clk 0:02:05]}  b6 {[%clk 0:02:51]} 8. b4 {[%clk 0:02:04]}  a5 {[%clk 0:02:51]} 9. a3 {[%clk 0:02:03]}  Nbd7 {[%clk 0:02:51]} 10. Nf3 {[%clk 0:01:57]}  O-O {[%clk 0:02:50]} 11. Bd3 {[%clk 0:01:54]}  Ba6 {[%clk 0:02:34]} 12. O-O {[%clk 0:01:48]}  Bxd3 {[%clk 0:02:33]} 13. Qxd3 {[%clk 0:01:48]}  Qc7 {[%clk 0:02:27]} 14. g3 {[%clk 0:01:42]}  Rfb8 {[%clk 0:02:19]} 15. Rfc1 {[%clk 0:01:23]}  bxc5 {[%clk 0:02:11]} 16. bxc5 {[%clk 0:01:22]}  Rb3 {[%clk 0:02:03]} 17. Nxd5 {[%clk 0:01:01]}  Rxd3 {[%clk 0:02:01]} 18. Nxc7 {[%clk 0:01:01]}  Rc8 {[%clk 0:02:00]} 19. Ne1 {[%clk 0:01:01]}  Rxd4 {[%clk 0:01:57]} 20. Na6 {[%clk 0:00:58]}  Ra8 {[%clk 0:01:49]} 21. Nf3 {[%clk 0:00:45]}  Rd3 {[%clk 0:01:45]} 22. Ne1 {[%clk 0:00:45]}  Rd4 {[%clk 0:01:32]} 23. Nf3 {[%clk 0:00:37]}  Rd3 {[%clk 0:01:32]} 24. Ne1 {[%clk 0:00:37]}  Rd4 {[%clk 0:01:32]} 1/2-1/2


[Site "https://www.chess.com"]

[Event "Titled Tuesday Blitz July 18 Early 2023"]
[White "Gyulamiryan-koryun"]
[Black "Stork, Oliver"]
[BlackFideId "12955728"]
[WhiteElo "1865"]
[BlackElo "2424"]
[Result "0-1"]
[Round "7"]
[TimeControl "180+2"]
[Date "2023.07.18"]
[WhiteClock "0:00:00"]
[BlackClock "0:01:15"]
[Board "182"]

1. d4 {[%clk 0:02:59]}  Nf6 {[%clk 0:02:59]} 2. Nf3 {[%clk 0:02:58]}  d5 {[%clk 0:02:59]} 3. g3 {[%clk 0:02:58]}  c6 {[%clk 0:02:56]} 4. Bg2 {[%clk 0:02:58]}  Bg4 {[%clk 0:02:56]} 5. Ne5 {[%clk 0:02:57]}  Bf5 {[%clk 0:02:56]} 6. O-O {[%clk 0:02:56]}  e6 {[%clk 0:02:55]} 7. c4 {[%clk 0:02:57]}  Nbd7 {[%clk 0:02:55]} 8. Nc3 {[%clk 0:02:55]}  Bd6 {[%clk 0:02:54]} 9. Bf4 {[%clk 0:02:54]}  Bxe5 {[%clk 0:02:51]} 10. dxe5 {[%clk 0:02:51]}  Nh5 {[%clk 0:02:51]} 11. cxd5 {[%clk 0:02:47]}  cxd5 {[%clk 0:02:51]} 12. e4 {[%clk 0:02:35]}  Nxf4 {[%clk 0:02:48]} 13. exf5 {[%clk 0:02:31]}  Nxg2 {[%clk 0:02:48]} 14. fxe6 {[%clk 0:02:14]}  fxe6 {[%clk 0:02:46]} 15. Qh5+ {[%clk 0:02:00]}  g6 {[%clk 0:02:39]} 16. Qh6 {[%clk 0:01:45]}  Nxe5 {[%clk 0:02:30]} 17. Kxg2 {[%clk 0:01:41]}  Qf6 {[%clk 0:02:27]} 18. Qe3 {[%clk 0:01:34]}  O-O {[%clk 0:02:22]} 19. Rfe1 {[%clk 0:01:34]}  Ng4 {[%clk 0:02:21]} 20. Qxe6+ {[%clk 0:01:31]}  Qxe6 {[%clk 0:02:22]} 21. Rxe6 {[%clk 0:01:31]}  Rxf2+ {[%clk 0:02:22]} 22. Kh3 {[%clk 0:01:31]}  h5 {[%clk 0:02:22]} 23. Rxg6+ {[%clk 0:01:20]}  Kh7 {[%clk 0:02:21]} 24. Rxg4 {[%clk 0:01:20]}  hxg4+ {[%clk 0:02:21]} 25. Kxg4 {[%clk 0:01:20]}  Rxh2 {[%clk 0:02:20]} 26. Nxd5 {[%clk 0:01:17]}  Rxb2 {[%clk 0:02:18]} 27. Nf6+ {[%clk 0:00:57]}  Kg6 {[%clk 0:02:15]} 28. Ne4 {[%clk 0:00:49]}  Rc8 {[%clk 0:02:13]} 29. Kf4 {[%clk 0:00:41]}  Rb4 {[%clk 0:02:07]} 30. Rd1 {[%clk 0:00:38]}  Re8 {[%clk 0:01:55]} 31. Re1 {[%clk 0:00:37]}  Rf8+ {[%clk 0:01:53]} 32. Ke5 {[%clk 0:00:32]}  Re8+ {[%clk 0:01:50]} 33. Kf4 {[%clk 0:00:32]}  a5 {[%clk 0:01:48]} 34. g4 {[%clk 0:00:28]}  b5 {[%clk 0:01:48]} 35. Re3 {[%clk 0:00:27]}  a4 {[%clk 0:01:47]} 36. Kf3 {[%clk 0:00:25]}  Rb2 {[%clk 0:01:42]} 37. Ra3 {[%clk 0:00:14]}  Ra8 {[%clk 0:01:20]} 38. Nd6 {[%clk 0:00:13]}  b4 {[%clk 0:01:20]} 39. Re3 {[%clk 0:00:10]}  Rf8+ {[%clk 0:01:18]} 40. Kg3 {[%clk 0:00:09]}  b3 {[%clk 0:01:17]} 41. axb3 {[%clk 0:00:09]}  Rxb3 {[%clk 0:01:18]} 42. Rxb3 {[%clk 0:00:05]}  axb3 {[%clk 0:01:19]} 43. Nc4 {[%clk 0:00:05]}  Rc8 {[%clk 0:01:17]} 44. Ne5+ {[%clk 0:00:05]}  Kf6 {[%clk 0:01:16]} 45. Nd3 {[%clk 0:00:05]}  Rc3 {[%clk 0:01:15]} 46. Kf3 {[%clk 0:00:00]}  Rxd3+ {[%clk 0:01:15]} 0-1


[Site "https://www.chess.com"]